Cogmind - Beta 12 @@@ ROGUE MODE // 2023.03.11 @ 18:15:17 Player: MasterOfBeings Result: Destroyed by 8R-AWN with 8R-AWN's Boregun Performance ------------- Evolutions (1) 500 Regions Visited (5) 1000 Robots Destroyed (18) 90 Value Destroyed (250) 250 Prototype IDs (1) 20 Alien Tech Used (0) 0 Bonus (21) 21 TOTAL SCORE: 1881 Bonus ------- Follower Combat Kills 21 Cogmind --------- Core Integrity 0/400 Matter 78/300 Energy 100/100 System Corruption 5% Temperature Cool (0) Movement Core (100) Ox1 Location -9/Exiles Parts ------- > --- POWER (2) -------- (None) > --- PROPULSION (2) --- (None) > --- UTILITY (3) ------ Small Storage Unit Targeting Computer > --- WEAPON (2) ------- (None) > --- INVENTORY (8) ---- Aluminum Leg Recoil Stabilizer Recoil Stabilizer Light Assault Rifle Light Assault Rifle Heavy Assault Rifle Mini Grenade Launcher Peak State ------------ > --- POWER ------------ Ion Engine Ion Engine > --- PROPULSION ------- Aluminum Leg Aluminum Leg > --- UTILITY ---------- Small Storage Unit Targeting Computer Improved Medium Armor Plating > --- WEAPON ----------- Slug Cannon Heavy Flail > --- INVENTORY -------- Aluminum Leg Aluminum Leg Recoil Stabilizer Recoil Stabilizer Heavy Assault Rifle Mini Grenade Launcher Heavy Flail Heavy Flail [Rating: 18] Favorites ----------- Power Ion Engine Engine Ion Engine Propulsion Aluminum Leg Leg Aluminum Leg Wheel Wheel Utility Targeting Computer Storage Small Storage Unit Processor Targeting Computer Protection Improved Medium Armor Plating Weapon Mini Grenade Launcher Energy Gun Small Laser Energy Cannon Advanced Beam Cannon Ballistic Gun Heavy Assault Rifle Ballistic Cannon Slug Cannon Launcher Mini Grenade Launcher Impact Weapon Heavy Flail Build | -11 -10 -10 -9 -9 -9 ------- Run | Jun Mat Min Mat Min Exi Slots Evolved 2 | . . . 2 . . Power 1 | . . . 1 . . Propulsion . | . . . . . . Utility 1 | . . . 1 . . Weapon . | . . . . . . Parts Attached 24 | 6 . . 12 6 . Power 4 | 1 . . 2 1 . Engine 4 | 1 . . 2 1 . Core . | . . . . . . Reactor . | . . . . . . Propulsion 5 | 2 . . 2 1 . Treads . | . . . . . . Leg 3 | . . . 2 1 . Wheel 2 | 2 . . . . . Hover . | . . . . . . Flight . | . . . . . . Utility 4 | 1 . . 2 1 . Device . | . . . . . . Storage 1 | 1 . . . . . Processor 2 | . . . 2 . . Hackware . | . . . . . . Protection 1 | . . . . 1 . Artifact . | . . . . . . Weapon 11 | 2 . . 6 3 . Energy Gun 2 | 1 . . 1 . . Energy Cannon 2 | . . . 2 . . Ballistic Gun 2 | 1 . . 1 . . Ballistic Cannon 1 | . . . . 1 . Launcher 2 | . . . 2 . . Special Weapon . | . . . . . . Impact Weapon 2 | . . . . 2 . Slashing Weapon . | . . . . . . Piercing Weapon . | . . . . . . Special Melee Weapon . | . . . . . . Unidentified Prototypes 1 | . . . 1 . . Parts Lost 11 | . . . 3 1 7 Power 2 | . . . . . 2 Propulsion 5 | . . . 2 1 2 Utility 1 | . . . . . 1 Weapon 3 | . . . 1 . 2 Highest Loss Streak 7 | . . . 3 1 7 To Critical Strikes 2 | . . . . . 2 Average Slot Usage (%) 93 | . 85 85 89 99 88 Engine 19 | . 14 14 18 22 17 Leg 15 | . . . 11 21 18 Wheel 6 | . 28 28 5 . . Storage 11 | . 14 14 11 11 11 Processor 14 | . . . 21 16 11 Protection 3 | . . . . 5 9 Energy Gun 3 | . 14 14 5 . . Ballistic Gun 7 | . 14 14 5 8 . Ballistic Cannon 1 | . . . . 2 9 Launcher 6 | . . . 8 8 . Impact Weapon 2 | . . . . 2 10 Naked Turns . | . . . . . . Heaviest Build 32 | 11 11 11 17 32 32 Greatest Support 20 | 20 20 20 20 20 20 Greatest Overweight (x) 4 | . . . 4 3 1 Average Overweight (x) . | . . . . . 1 Largest Inventory Capacity 8 | 8 8 8 8 8 8 Average Capacity 7 | 6 8 8 8 8 8 Most Carried 8 | 6 7 8 8 8 7 Average Carried 7 | 2 6 7 7 7 7 Final Capacity 8 | 8 8 8 8 8 8 Final Carried 8 | 6 7 8 8 7 7 Class Distribution -------------------- 53% | Mutant 46% | Scavenger-Mutant Dominant Class ---------------- Mutant | -10/Materials Mutant | -10/Mines Mutant | -9/Materials Scavenger-Mutant | -9/Mines Mutant | -9/Exiles Resources | -11 -10 -10 -9 -9 -9 ----------- Run | Jun Mat Min Mat Min Exi Matter Collected 468 | 237 . 41 33 150 7 Remotely . | . . . . . . Salvage Created 208 | . . 53 115 40 . Parts 21 | . . . 13 8 . Haulers Intercepted 1 | . . . 1 . . Recyclers Shooed . | . . . . . . Parts Field Recycled . | . . . . . . Retrieved Matter . | . . . . . . Parts Self-Destructed . | . . . . . . Prevented . | . . . . . . Kills | -11 -10 -10 -9 -9 -9 ------- Run | Jun Mat Min Mat Min Exi Combat Hostiles Destroyed 16 | . . 1 8 7 . Melee 1 | . . . . 1 . Guns 4 | . . 1 3 . . AOE 11 | . . . 5 6 . Classes Destroyed 5 | . . 1 4 . . Hauler 1 | . . . 1 . . Watcher 1 | . . . 1 . . Swarmer 14 | . . . 7 7 . Grunt 1 | . . 1 . . . Sentry 1 | . . . 1 . . Best Kill Streak 7 | . . 1 7 3 . Combat Bots Only 6 | . . 1 6 3 . Max Kills in Single Turn 2 | . . 1 2 2 . Gunslinging . | . . . . . . Exploded 2 | . . . 2 2 . Melee 1 | . . . . 1 . Uniques/NPCs Destroyed . | . . . . . . Combat | -11 -10 -10 -9 -9 -9 -------- Run | Jun Mat Min Mat Min Exi Damage Taken 1756 | . . 126 255 418 957 Core 437 | . . 32 59 29 317 Absorbed by Shields . | . . . . . . Core Remaining (%) 93 | 100 . 87 . . . Volleys Fired 51 | . . 6 17 25 3 Largest 2 | . . 2 2 2 1 Hottest 70 | . . 60 70 53 48 Shots Fired 70 | . . 12 24 30 4 Gun 33 | . . 12 17 4 . Cannon 26 | . . . . 22 4 Launcher 11 | . . . 7 4 . Special . | . . . . . . Kinetic 36 | . . 6 . 26 4 Thermal 23 | . . 6 17 . . Explosive 11 | . . . 7 4 . Electromagnetic . | . . . . . . Robot Hit Streak 12 | . . 3 12 1 1 Robot Miss Streak 14 | . . 2 2 13 14 Penetration Max . | . . . . . . Secondary Targets . | . . . . . . Shots Hit Robots 31 | . . 8 19 3 1 Core Hits 26 | . . 3 17 6 . Critical Kills . | . . . . . . Critical Parts Destroyed 1 | . . . . 1 . Critical Strikes 1 | . . . . 1 . Smash 1 | . . . . 1 . Melee Attacks 3 | . . . . 3 . Impact 3 | . . . . 3 . Slashing . | . . . . . . Piercing . | . . . . . . Sneak Attacks . | . . . . . . Combat Hostiles . | . . . . . . Follow-up Attacks . | . . . . . . Damage Inflicted 1287 | . . 95 727 393 72 Guns 237 | . . 95 142 . . Cannons 140 | . . . . 68 72 Explosions 843 | . . . 585 258 . Melee 67 | . . . . 67 . Ramming . | . . . . . . Kinetic 180 | . . 40 . 68 72 Thermal 197 | . . 55 142 . . Explosive 843 | . . . 585 258 . Electromagnetic . | . . . . . . Impact 67 | . . . . 67 . Slashing . | . . . . . . Piercing . | . . . . . . Highest Corruption 5 | . . . . 1 5 Average Corruption 1 | . . . . 1 1 Corruption Purged . | . . . . . . Corruption Blocked . | . . . . . . Effects 4 | . . . . 3 1 Matter Fused 1 | . . . . 1 . Heat Flow Errors 1 | . . . . 1 . Misfires 2 | . . . . 1 1 Overload Shots . | . . . . . . Overflow Damage 112 | . . . 5 107 . Projectiles 3 | . . . . 3 . Explosions 42 | . . . 5 37 . Melee 67 | . . . . 67 . Knockbacks 3 | . . . . 2 1 Impact . | . . . . . . Kinetic 3 | . . . . 2 1 Secondary . | . . . . . . Self-Inflicted Damage 87 | . . . 40 47 . Shots 2 | . . . 1 1 . Rammed . | . . . . . . Targets Rammed . | . . . . . . Kicked . | . . . . . . Crushed . | . . . . . . Highest Temperature 369 | . . 90 339 369 24 Average Temperature 122 | . . 51 152 145 15 Received Heat Transfer 217 | . . 90 27 . 100 Effects 2 | . . . . 2 . Energy Bleed 2 | . . . . 2 . Siege Activations . | . . . . . . Robots Corrupted . | . . . . . . Combat Hostiles . | . . . . . . Parts Fried . | . . . . . . Impact Corruptions 1 | . . . . 1 . Robots Melted . | . . . . . . Combat Hostiles . | . . . . . . Parts Melted 1 | . . 1 . . . Heat Transferred 450 | . . 125 325 . . Parts Sabotaged . | . . . . . . Parts Stolen . | . . . . . . Parts Stripped . | . . . . . . Power Chain Reactions . | . . . . . . Missiles Intercepted . | . . . . . . Alert | -11 -10 -10 -9 -9 -9 ------- Run | Jun Mat Min Mat Min Exi Peak Influence 291 | . 7 57 291 288 . Initial 113 | . . 2 22 113 . Average 156 | . 3 21 229 171 . Maximum Alert Level 1 | . . . 1 1 . Low Security (%) 76 | 100 100 100 26 97 . Level 1 23 | . . . 73 2 . Level 2 . | . . . . . . Level 3 . | . . . . . . Level 4 . | . . . . . . Level 5 . | . . . . . . High Security . | . . . . . . Max Security . | . . . . . . Squads Dispatched 3 | . 1 . 2 . . Investigation 2 | . 1 . 1 . . Extermination . | . . . . . . Reinforcement 1 | . . . 1 . . Assault . | . . . . . . Garrison . | . . . . . . Intercept . | . . . . . . Searches Triggered . | . . . . . . Construction Impeded . | . . . . . . Haulers Reinforced . | . . . . . . Active Scanning Responses . | . . . . . . Cargo Convoy Interrupts . | . . . . . . Stealth | -11 -10 -10 -9 -9 -9 --------- Run | Jun Mat Min Mat Min Exi Distress Signals 2 | . . . 2 . . Communications Jammed . | . . . . . . Distress Signals . | . . . . . . Times Spotted 33 | . . 3 14 8 8 Peak Tracking Total 9 | . . 2 6 4 9 Tactical Retreats 2 | . . 1 1 . . Traps | -11 -10 -10 -9 -9 -9 ------- Run | Jun Mat Min Mat Min Exi Traps Triggered 1 | . . . . 1 . Indirectly . | . . . . . . Trap Hack Attempts . | . . . . . . Triggered . | . . . . . . Disarmed . | . . . . . . Reprogrammed . | . . . . . . Reused 1 | . . 1 . . . Traps Extracted . | . . . . . . Installed 1 | . . 1 . . . Triggered 1 | . . 1 . . . Most Traps Carried 3 | . . 3 3 . . Machines | -11 -10 -10 -9 -9 -9 ---------- Run | Jun Mat Min Mat Min Exi Machines Disabled . | . . . . . . Max in Single Turn . | . . . . . . Machines Repaired . | . . . . . . Machines Sabotaged . | . . . . . . Overloaded Fab Kills . | . . . . . . Hacking | -11 -10 -10 -9 -9 -9 --------- Run | Jun Mat Min Mat Min Exi Machines Accessed 7 | . 2 . 4 1 . Terminals 3 | . 2 . 1 . . Fabricators . | . . . . . . Repair Stations . | . . . . . . Recycling Units 2 | . . . 2 . . Scanalyzers 1 | . . . 1 . . Garrison Access . | . . . . . . Total Hacks 16 | . 8 . 7 1 . Successful 15 | . 7 . 7 1 . Failed 1 | . 1 . . . . Catastrophic . | . . . . . . Database Lockouts . | . . . . . . Manual 1 | . 1 . . . . Terminals 11 | . 8 . 3 . . Fabricators . | . . . . . . Repair Stations . | . . . . . . Recycling Units 2 | . . . 2 . . Scanalyzers 2 | . . . 2 . . Garrison Access . | . . . . . . Terminal Hacks 11 | . 7 . 3 1 . Record 7 | . 4 . 3 . . Open Door 1 | . . . . 1 . Terminal Index 1 | . 1 . . . . Alert Level 1 | . 1 . . . . Zone Layout 1 | . 1 . . . . Fabricator Hacks . | . . . . . . Repair Station Hacks . | . . . . . . Recycling Unit Hacks 2 | . . . 2 . . Retrieve Components 2 | . . . 2 . . Scanalyzer 2 | . . . 2 . . Insert Component 1 | . . . 1 . . Analyze 1 | . . . 1 . . Garrison Access Hacks . | . . . . . . Unauthorized Hacks . | . . . . . . Terminals . | . . . . . . Fabricators . | . . . . . . Repair Stations . | . . . . . . Recycling Units . | . . . . . . Scanalyzers . | . . . . . . Garrison Access . | . . . . . . Data Cores Recovered . | . . . . . . Used . | . . . . . . Hacking Detections 4 | . 2 . 2 . . Full Trace Events 2 | . 1 . 1 . . Feedback Events . | . . . . . . Feedback Blocked . | . . . . . . Robot Schematics Acquired . | . . . . . . Robots Built . | . . . . . . Authchips . | . . . . . . Time . | . . . . . . Total Robot Build Rating . | . . . . . . Part Schematics Acquired 1 | . . . 1 . . Parts Built . | . . . . . . Authchips . | . . . . . . Time . | . . . . . . Total Part Build Rating . | . . . . . . Parts Repaired . | . . . . . . Time . | . . . . . . Parts Recycled . | . . . . . . Recycled Matter . | . . . . . . Retrieved Matter . | . . . . . . Retrieved Components 17 | . . . 17 . . Parts Scanalyzed 1 | . . . 1 . . Part Schematics Acquired 1 | . . . 1 . . Parts Damaged . | . . . . . . Bothacking | -11 -10 -10 -9 -9 -9 ------------ Run | Jun Mat Min Mat Min Exi Used RIF Installer . | . . . . . . Robots Hacked . | . . . . . . Non-combat . | . . . . . . Combat . | . . . . . . Robot Hacks Applied . | . . . . . . Relay Couplers Released . | . . . . . . Fabnet Peak Effective % . | . . . . . . Robots Rewired . | . . . . . . Allies Hacked . | . . . . . . Hacks Repelled . | . . . . . . Allies | -11 -10 -10 -9 -9 -9 -------- Run | Jun Mat Min Mat Min Exi Total Allies 1 | . . . . 1 . Largest Group 1 | . . . . 1 . Highest-Rated Group 31 | . . . . 31 . Highest-Rated Ally 31 | . . . . 31 . Total Orders . | . . . . . . Ally Attacks 8 | . . . . 8 . Total Damage 148 | . . . . 148 . Kills 3 | . . . . 3 . Allies Corrupted . | . . . . . . Allies Melted . | . . . . . . Intel | -11 -10 -10 -9 -9 -9 ------- Run | Jun Mat Min Mat Min Exi Robot Analysis Total . | . . . . . . Derelict Logs Recovered 2 | . . 1 . 1 . Drone Launches . | . . . . . . Drone Recoveries . | . . . . . . Exploration | -11 -10 -10 -9 -9 -9 ------------- Run | Jun Mat Min Mat Min Exi Turns Passed 1450 | 46 39 187 395 645 138 Spaces Moved 981 | 36 48 185 262 393 57 Core 25 | 2 . . 23 . . Treads . | . . . . . . Legs 608 | . . . 158 393 57 Wheels 348 | 34 48 185 81 . . Hover . | . . . . . . Flight . | . . . . . . Fastest Speed 50 | 50 80 80 80 120 190 Average Speed 121 | 78 80 80 119 141 190 Slowest Speed 330 | 80 80 80 250 330 190 Overloaded Moves . | . . . . . . Propulsion Burnouts . | . . . . . . Robots Hopped . | . . . . . . Cave-ins Triggered . | . . . . . . Exploration Rate (%) 27 | 3 17 32 25 74 11 Regions Visited 5 Branch Regions 3 Pre-discovered Areas . | . . . . . . Known Exits Taken . | . . . . . . Unknown Exits Taken 5 | 1 1 1 1 1 . Scrap Searched 1 | . . 1 . . . Spaces Dug . | . . . . . . Terrain Destroyed 86 | . . . 26 59 1 Melee . | . . . . . . Projectile 14 | . . . . 13 1 AOE 72 | . . . 26 46 . Terrain Rammed . | . . . . . . Walls Destroyed . | . . . . . . Machines Disabled . | . . . . . . Actions | -11 -10 -10 -9 -9 -9 --------- Run | Jun Mat Min Mat Min Exi Total 1171 | 53 48 214 324 449 83 Wait 58 | . . 10 9 16 23 Move 976 | 35 47 184 261 392 57 Hop . | . . . . . . Pick Up 35 | 12 1 7 12 3 . Fast Attach 8 | . . . 7 1 . Attach 13 | 6 . . 5 2 . Detach . | . . . . . . Swap 3 | . . . . 3 . Drop 23 | . . 6 13 4 . Fire 51 | . . 6 17 25 3 Melee 3 | . . . . 3 . Ram . | . . . . . . Kick . | . . . . . . Crush . | . . . . . . Escape Stasis . | . . . . . . Rewire . | . . . . . . Trap 1 | . . 1 . . . Miscellaneous . | . . . . . . Route ------- -11/Junkyard -10/Materials (discovered 2 exits: [*Min x2]) -10/Mines -9/Materials -9/Mines (discovered 2 exits: [*Mat] / [*Exi]) -9/Exiles (discovered 1 exit: [*Min]) History --------- Turn | Location | Event 13 | -11/Junkyard | Discovered new exit (range 16) 47 | -11/Junkyard | Entered Materials 73 | -10/Materials | Discovered new exit (range 17) 73 | -10/Materials | Discovered new exit (range 17) 86 | -10/Materials | Entered Mines 134 | -10/Mines | Learned Materials garrison access intel 142 | -10/Mines | Found a hidden stash of uninstalled traps 170 | -10/Mines | Discovered new exit (range 13) 273 | -10/Mines | Entered Materials 273 | -9/Materials | Evolved 2 slots: Power x1, Utility x1 309 | -9/Materials | Build established: Mutant 420 | -9/Materials | Lost 3 parts (2n1w) 648 | -9/Materials | Discovered new exit (range 15) 668 | -9/Materials | Entered Mines 757 | -9/Mines | Discovered new exit (range 15) 795 | -9/Mines | Build established: Scavenger-Mutant 941 | -9/Mines | A weapon hastily lodged in a ceiling crevice suddenly fell to the ground 1003 | -9/Mines | Met a Derelict who couldn't figure out how to use a Trap Extractor 1056 | -9/Mines | Escorted by a lone wolf Derelict 1170 | -9/Mines | Learned 2 Materials zone layouts 1306 | -9/Mines | Deemed a non-threat by the Exiles lab entrance 1306 | -9/Mines | Discovered new exit (range 5) 1313 | -9/Mines | Entered Exiles 1370 | -9/Exiles | Discovered new exit (range 14) 1395 | -9/Exiles | Met 8R-AWN 1419 | -9/Exiles | Attacked by the Exiles 1443 | -9/Exiles | Core integrity fell below 50% 1449 | -9/Exiles | Core integrity fell below 20% 1451 | -9/Exiles | Destroyed by 8R-AWN with 8R-AWN's Boregun Last Messages --------------- 01439_ Aluminum Leg destroyed. 01439_ HV Slug penetrates Wall. 01440_ Hvy. Flail destroyed. 01440_ System corrupted by crushing effect (+3). 01442_ Penetrated by HV Slug. 01442_ HV Slug penetrates Wall. 01444_ Penetrated by HV Slug. 01444_ HV Slug penetrates Wall. 01444_ Penetrated by HV Slug. 01444_ HV Slug penetrates Earth. 01446_ Penetrated by HV Slug. 01446_ HV Slug penetrates Earth. 01446_ HV Slug penetrates Wall. 01448_ Penetrated by HV Slug. 01448_ HV Slug penetrates Earth. 01448_ Penetrated by HV Slug. 01448_ HV Slug penetrates Earth. 01451_ Penetrated by HV Slug. 01451_ HV Slug penetrates Earth. 01451_ Penetrated by HV Slug. Map ----- +----------------------------------------------------+ | ?????????????????????????????????????????????????? | | ?????????????????????????????????????????????????? | | ?????????????????????????????????????????????????? | | ?????????????????????????????????????????????????? | | ?????????????????????????????????????????????????? | | ?????????????????????????????????????????????????? | | ?????????????????????????????????????????????????? | | ?????????????????????????????????????????????????? | | ?????????????????????????????????????????????????? | | ?????????????????????????????????????????????????? | | ?????????????????????????????????????????????????? | | ?????????????????????????????????????????????????? | | ?????????????????????????????????????????????????? | | ?????????????????????????????????????????????????? | | ??????????????#??????????????????????????????????? | | ??????????????? ?????????????????????????????????? | | ???????????????? #??????????????????????????????# | | ????????????????# #????????????????????????????# | | ?????????????????# #??????????????????????????? < | | ??????????????????# #?????????????????????????? | | ???????????????????# #????????????????????????? | | ????????????????????# #???????????????????????# | | ?????????????????????# #????????????????????## | | ?????????????????????? ###?????????????????# | | ???????????????????????#;;###???????????????# | | ???????????????????????#;@ #??????????????## | | ???????????????????????# a #?????????????## # | | ??????????????????????#;%%%g##????????????# # | | ????????????????????### a ###????????### #? | | ????????????????????# ########## #? | | ???????????????????##% """""## #?? | | ???????????????????# a * ##? | | ????????????? ## * #? | | ????????????? #?## ## | | ????????????? ""??#"""""#### # | | ????????????? #"""#??#######??#### * | | ????????????? #####???????????????##### | | ?????????????? #????????????????????????### | | ?????????????? #???????????????????????????### | | ??????????????????????????????????????????????### | | ???????????????????????????????????????????????#" | | ???????????????????????????????????????????????### | | ?????????????????????????????????????????????????? | | ?????????????????????????????????????????????????? | | ?????????????????????????????????????????????????? | | ?????????????????????????????????????????????????? | | ?????????????????????????????????????????????????? | | ?????????????????????????????????????????????????? | | ?????????????????????????????????????????????????? | | ?????????????????????????????????????????????????? | +----------------------------------------------------+ Best States ------------- Heat Dissipation 28 Energy Generation 15 Energy Capacity 400 Matter Stores 300 Matter Capacity 300 Sight Range 16 Terrain Scan Density 10 Armor Coverage 225 Evasion (%) 55 Targeting Accuracy 10 Item Schematics ----------------- Grenade Launcher | -9/Materials | Scanalyzed Robot Schematics ------------------ None Fabricated ------------ Nothing Alien Tech Used ----------------- None Achievements -------------- Let's See Who's Tougher Oops Challenges ------------ None Game ------ Seed IonicSmallTreads Manual? 0 Play Time 00:29:11 Cumulative 9.0 hours Start 2023.03.11 @ 17:40:08 End 2023.03.11 @ 18:15:17 Sessions 1 Manual Loads 0 Difficulty Rogue Special Mode None Game No. 20 Rogue 20 Adventurer 0 Explorer 0 Win Type - Total 0 Types 0/0/0/0/0/0/0/0/0 Lore% 8 Gallery% 19 Achievement% 8 Wizard Run 0 Options --------- ASCII 0 Keyboard 0 Movement Mouse Keybinds 0 Fullscreen 2 Font 18/SmallcapsGlow Map View 76x50 Tactical HUD 1 Map Filters NONE Filters NONE Steam 1 RUN: c0c04401-8b39-47bd-aac6-4dc8f77d302c